Cogmind - Beta 13 @@@ ROGUE MODE // 2024.04.11 @ 14:25:06 Player: Evilsquid Result: Destroyed by X-67 Chaingunner with Heavy Machine Gun Performance ------------- Evolutions (3) 1500 Regions Visited (6) 1200 Robots Destroyed (204) 1020 Value Destroyed (5780) 5780 Prototype IDs (7) 140 Alien Tech Used (0) 0 Bonus (522) 522 TOTAL SCORE: 10162 Bonus ------- High Alert Combat Kills 448 Follower Combat Kills 120 Friendly Fire -46 Cogmind --------- Core Integrity 0/700 Matter 22/300 Energy 299/310 System Corruption 11% Temperature Cool (0) Movement Treading (320) Ox2 Location -7/Factory Parts ------- > --- POWER (1) -------- Heavy Deuterium Engine > --- PROPULSION (5) --- Light Treads Light Treads > --- UTILITY (5) ------ Huge Storage Unit Improved Light Armor Plating Reactive Plating > --- WEAPON (2) ------- Flak Gun > --- INVENTORY (25) --- Hybrid Deuterium Engine Hybrid Deuterium Engine Hybrid Deuterium Engine Improved Titanium Leg Wheel Improved Heat Sink Improved Cooling System Improved Signal Interpreter Improved Signal Interpreter Improved Targeting Computer Advanced Targeting Computer Weapon Cycler Weapon Cycler Improved Utility Shielding Improved Utility Shielding Improved Utility Shielding Improved Utility Shielding Layered Light Armor Plating Layered Light Armor Plating Shock Absorption System Shock Absorption System High-powered Tractor Beam Minigun High-powered Shotgun Mini Grenade Launcher Peak State ------------ > --- POWER ------------ Heavy Deuterium Engine > --- PROPULSION ------- Wheel Armored Huge Wheel Armored Huge Wheel > --- UTILITY ---------- Improved Heat Sink Huge Storage Unit Improved Light Armor Plating Layered Light Armor Plating Insulated Plating > --- WEAPON ----------- Minigun Mini Assault Cannon > --- INVENTORY -------- Hybrid Deuterium Engine Hybrid Deuterium Engine Hybrid Deuterium Engine Heavy Deuterium Engine Wheel Improved Cooling System Improved Signal Interpreter Improved Signal Interpreter Improved Targeting Computer Advanced Targeting Computer Weapon Cycler Weapon Cycler Improved Propulsion Shielding Improved Utility Shielding Improved Utility Shielding Improved Utility Shielding Improved Utility Shielding Improved Light Armor Plating Shock Absorption System High-powered Tractor Beam Autogun Enhanced Autogun Flak Gun Mini Grenade Launcher Heavy Rocket Launcher [Rating: 52] Favorites ----------- Power Heavy Ion Engine Engine Heavy Ion Engine Power Core Light Nuclear Core Propulsion Light Treads Treads Light Treads Wheel Wheel Utility Huge Storage Unit Device Improved Heat Sink Storage Huge Storage Unit Processor Advanced Targeting Computer Protection Medium Armor Plating Weapon Improved Light Cannon Energy Gun Beam Rifle Energy Cannon Ion Cannon Ballistic Gun Minigun Ballistic Cannon Improved Light Cannon Launcher Mini Grenade Launcher Build | -11 -10 -10 -9 -9 -8 -7 ------- Run | Yrd Mat Min Mat Min Mat Fac Slots Evolved 6 | . . . 2 . 2 2 Power . | . . . . . . . Propulsion 3 | . . . 1 . 1 1 Utility 3 | . . . 1 . 1 1 Weapon . | . . . . . . . Parts Attached 208 | 8 14 5 47 4 61 69 Power 20 | 1 4 1 6 1 2 5 Engine 19 | 1 3 1 6 1 2 5 Core 1 | . 1 . . . . . Reactor . | . . . . . . . Propulsion 56 | 2 3 . 12 1 19 19 Treads 49 | 2 3 . 12 1 18 13 Leg . | . . . . . . . Wheel 7 | . . . . . 1 6 Hover . | . . . . . . . Flight . | . . . . . . . Utility 78 | 3 3 3 13 1 29 26 Device 22 | 2 1 1 1 . 14 3 Storage 5 | 1 1 1 . . 1 1 Processor 3 | . . . . . 3 . Hackware . | . . . . . . . Protection 48 | . 1 1 12 1 11 22 Artifact . | . . . . . . . Weapon 54 | 2 4 1 16 1 11 19 Energy Gun 8 | . 4 . 4 . . . Energy Cannon 6 | . . . 6 . . . Ballistic Gun 23 | 2 . 1 2 . 2 16 Ballistic Cannon 14 | . . . 4 . 8 2 Launcher 3 | . . . . 1 1 1 Special Weapon . | . . . . . . . Impact Weapon . | . . . . . . . Slashing Weapon . | . . . . . . . Piercing Weapon . | . . . . . . . Special Melee Weapon . | . . . . . . . Unidentified Prototypes 7 | . . . 3 . 2 2 Corrupted Parts 3 | . . 2 . . . 1 System Corruption 13 | . . 7 . . . 6 Parts Lost 50 | . 3 1 6 2 9 29 Power 3 | . 1 . . . . 2 Propulsion 19 | . 1 . 3 1 6 8 Utility 18 | . 1 . 2 1 2 12 Weapon 10 | . . 1 1 . 1 7 Highest Loss Streak 14 | . 2 1 4 2 2 14 To Critical Strikes . | . . . . . . . Average Slot Usage (%) 96 | . 98 99 98 99 99 85 Engine 9 | . 9 14 10 11 9 6 Treads 29 | . 27 28 32 32 35 18 Wheel 1 | . . . . . . 8 Device 6 | . 11 12 4 . 5 3 Storage 10 | . 14 14 11 11 9 7 Processor 2 | . . . . . 8 1 Protection 14 | . 1 1 16 21 13 22 Energy Gun 5 | . 24 23 1 . . . Energy Cannon 1 | . . . 6 . . . Ballistic Gun 4 | . 3 4 1 . . 14 Ballistic Cannon 8 | . . . 11 20 17 . Naked Turns . | . . . . . . . Heaviest Build 131 | 14 32 97 110 111 118 131 Greatest Support 111 | 40 40 40 66 67 88 111 Greatest Overweight (x) 40 | . 1 2 2 1 6 40 Average Overweight (x) 1 | . . . 1 1 1 1 Largest Inventory Capacity 25 | 8 15 25 25 25 25 25 Average Capacity 22 | 7 11 16 25 25 25 25 Most Carried 25 | 5 15 16 25 25 25 25 Average Carried 21 | 2 10 15 23 24 24 22 Final Capacity 25 | 8 15 25 25 25 25 25 Final Carried 25 | 5 15 16 25 23 25 25 Class Distribution -------------------- 76% | Mutant 23% | Scavenger-Mutant Dominant Class ---------------- Mutant | -10/Materials Mutant | -10/Mines Mutant | -9/Materials Mutant | -9/Mines Mutant | -8/Materials Scavenger-Mutant | -7/Factory Resources | -11 -10 -10 -9 -9 -8 -7 ----------- Run | Yrd Mat Min Mat Min Mat Fac Matter Collected 6236 | 324 401 109 1228 113 2639 1422 Remotely 705 | . . . . . 552 153 Salvage Created 6714 | 125 724 214 2231 61 1825 1534 Parts 415 | 11 41 16 147 3 89 108 Haulers Intercepted 16 | . 1 . 6 . 6 3 Recyclers Shooed 7 | . . . 2 . 2 3 Parts Field Recycled . | . . . . . . . Retrieved Matter . | . . . . . . . Parts Self-Destructed . | . . . . . . . Prevented . | . . . . . . . Kills | -11 -10 -10 -9 -9 -8 -7 ------- Run | Yrd Mat Min Mat Min Mat Fac Combat Hostiles Destroyed 156 | . 16 9 48 14 45 24 Melee 3 | . . . . . . 3 Guns 62 | . 15 9 14 . 4 20 Cannons 76 | . . . 33 2 41 . AOE 13 | . . . . 12 . 1 Classes Destroyed 17 | 2 5 1 4 . 2 3 Worker 9 | . 2 1 2 . 2 2 Builder 6 | . . . 2 . 1 3 Tunneler 8 | 3 . . . 2 . 3 Hauler 16 | . 1 . 6 . 6 3 Recycler 13 | 1 . . 4 . 6 2 Mechanic 2 | . . . . . . 2 Operator 2 | . . . 1 . 1 . Watcher 13 | . 3 . 5 . 4 1 Swarmer 29 | . 3 5 10 . 7 4 Grunt 73 | . 13 3 26 1 27 3 Brawler 1 | . . . . . 1 . Duelist 5 | . . . 2 1 2 . Sentry 21 | . . . 10 . 6 5 Specialist 3 | . . . . . . 3 Hunter 4 | . . . . . 2 2 Programmer 7 | . . . . . . 7 Assembled 13 | . . 1 . 12 . . Best Kill Streak 13 | 2 6 5 6 13 5 5 Combat Bots Only 12 | . 4 5 5 12 5 3 Max Kills in Single Turn 4 | 1 2 2 2 4 2 3 Gunslinging 1 | . . 1 . . . . Exploded 4 | . . . . 4 . 1 Melee 1 | . . . . . . 1 Uniques/NPCs Destroyed . | . . . . . . . Combat | -11 -10 -10 -9 -9 -8 -7 -------- Run | Yrd Mat Min Mat Min Mat Fac Hostile Shots Fired 1397 | . 81 56 227 36 296 701 Missed 339 | . 17 7 63 7 70 175 Damage Taken 14028 | . 801 573 2095 509 3405 6645 Core 1656 | . 149 94 238 48 420 707 Absorbed by Shields 629 | . . . . . 419 210 Redirected to Shielding 284 | . 36 . 146 . . 102 Ignored by Resistances 365 | . . . . . . 365 Regen/Repaired (Parts) 360 | . . . 360 . . . Core Remaining (%) 38 | 100 . 2 . 28 23 . Volleys Fired 617 | 14 62 25 172 18 188 138 Largest 2 | 2 2 2 2 2 2 2 Hottest 150 | 40 112 112 150 78 88 72 Shots Fired 1205 | 28 122 50 343 29 372 261 Gun 586 | 28 122 50 116 . 15 255 Cannon 610 | . . . 227 22 357 4 Launcher 9 | . . . . 7 . 2 Special . | . . . . . . . Kinetic 914 | 28 2 16 215 22 372 259 Thermal 282 | . 120 34 128 . . . Explosive 9 | . . . . 7 . 2 Electromagnetic . | . . . . . . . Robot Hit Streak 16 | 3 9 9 16 8 14 16 Robot Miss Streak 12 | 3 4 3 6 2 12 11 Penetration Max . | . . . . . . . Secondary Targets 8 | . . 2 1 . . 5 Max Gunslinging Chain 1 | . . 1 1 . . 1 Shots Hit Robots 788 | 14 71 34 224 20 246 179 Core Hits 418 | 6 33 14 90 26 136 113 Critical Kills 1 | . . . 1 . . . Critical Parts Destroyed . | . . . . . . . Critical Strikes 23 | . 10 2 6 . 5 . Burn 14 | . 10 2 2 . . . Meltdown 1 | . . . 1 . . . Blast 8 | . . . 3 . 5 . Melee Attacks . | . . . . . . . Impact . | . . . . . . . Slashing . | . . . . . . . Piercing . | . . . . . . . Sneak Attacks . | . . . . . . . Combat Hostiles . | . . . . . . . Follow-up Attacks . | . . . . . . . Damage Inflicted 16441 | 167 1251 514 3974 1285 5407 3843 Guns 6002 | 166 1099 485 919 . 185 3148 Cannons 8468 | . . . 2991 336 5061 80 Explosions 1467 | . 139 . . 910 109 309 Melee . | . . . . . . . Ramming 504 | 1 13 29 64 39 52 306 Kinetic 11398 | 166 . 154 2268 336 5246 3228 Thermal 3377 | . 1099 331 1642 . 109 196 Explosive 1023 | . . . . 910 . 113 Electromagnetic 139 | . 139 . . . . . Impact . | . . . . . . . Slashing . | . . . . . . . Piercing . | . . . . . . . Highest Corruption 11 | . . 8 . . 5 11 Average Corruption 6 | . . 7 . . 3 8 Corruption Purged . | . . . . . . . Corruption Blocked . | . . . . . . . Effects 126 | . . 17 . . 36 73 Message Errors 39 | . . 4 . . 13 22 Matter Fused 25 | . . 3 . . 10 12 Heat Flow Errors 8 | . . 2 . . 2 4 Energy Discharges 20 | . . 3 . . 3 14 Parts Rejected 2 | . . . . . . 2 Parts Fused 1 | . . 1 . . . . Data Loss (minor) 15 | . . 3 . . 1 11 Data Loss (major) 5 | . . . . . 2 3 Misfires 3 | . . . . . 2 1 Alerts 3 | . . 1 . . 1 1 Misdirections 2 | . . . . . . 2 Weapon Failures 3 | . . . . . 2 1 Overload Shots . | . . . . . . . Overflow Damage 371 | . . . 39 66 130 136 Projectiles 143 | . . . 39 28 76 . Explosions 194 | . . . . 38 54 102 Melee 34 | . . . . . . 34 Knockbacks 108 | . 1 1 11 5 87 3 Impact 5 | . 1 1 . . . 3 Kinetic 93 | . . . 11 5 77 . Secondary 10 | . . . . . 10 . Self-Inflicted Damage 367 | . 105 . . 93 . 169 Shots 8 | . 4 . . 3 . 1 Rammed 53 | 1 3 7 6 3 8 25 Targets Rammed 59 | 1 3 7 7 4 9 28 Kicked . | . . . . . . . Crushed 6 | . . . 1 1 1 3 Highest Temperature 545 | . 545 301 536 337 453 529 Average Temperature 119 | . 154 133 71 137 108 161 Received Heat Transfer 3067 | . 345 114 645 86 1139 738 Effects 45 | . 10 3 9 . 7 16 Shutdowns 9 | . 2 . 1 . 3 3 Energy Bleed 12 | . 3 1 3 . 1 4 Interference 8 | . 3 2 1 . 1 1 Matter Decay 8 | . 2 . 2 . . 4 Short Circuit 4 | . . . 1 . 1 2 Damage (minor) 4 | . . . 1 . 1 2 Siege Activations . | . . . . . . . Robots Corrupted . | . . . . . . . Combat Hostiles . | . . . . . . . Parts Fried 1 | . . . . . . 1 Impact Corruptions 3 | . . . . . . 3 Robots Melted 2 | . 1 . 1 . . . Combat Hostiles 2 | . 1 . 1 . . . Parts Melted 19 | . 7 2 10 . . . Heat Transferred 8081 | . 3552 999 3330 . 100 100 Parts Sabotaged . | . . . . . . . Parts Stolen . | . . . . . . . Parts Stripped . | . . . . . . . Power Chain Reactions 1 | . 1 . . . . . Alert | -11 -10 -10 -9 -9 -8 -7 ------- Run | Yrd Mat Min Mat Min Mat Fac Peak Influence 827 | 20 259 285 780 336 827 408 Initial 358 | . 13 46 111 304 63 358 Average 288 | 8 106 105 401 253 366 229 Maximum Alert Level 3 | . 1 1 3 1 3 2 Low Security (%) 41 | 100 94 69 19 35 31 36 Level 1 36 | . 5 30 43 64 28 54 Level 2 16 | . . . 24 . 29 9 Level 3 6 | . . . 13 . 10 . Level 4 . | . . . . . . . Level 5 . | . . . . . . . High Security . | . . . . . . . Max Security . | . . . . . . . Squads Dispatched 33 | . 5 . 9 . 10 9 Investigation 9 | . 2 . 4 . 3 . Extermination 5 | . . . . . . 5 Reinforcement 15 | . 3 . 4 . 5 3 Assault 3 | . . . 1 . 2 . Garrison 1 | . . . . . . 1 Intercept . | . . . . . . . Searches Triggered . | . . . . . . . Construction Impeded 2 | . . . . . 2 . Haulers Reinforced . | . . . . . . . Active Scanning Responses . | . . . . . . . Cargo Convoy Interrupts 1 | . . . . . . 1 Stealth | -11 -10 -10 -9 -9 -8 -7 --------- Run | Yrd Mat Min Mat Min Mat Fac Distress Signals 7 | . 1 . 1 1 4 . Communications Jammed . | . . . . . . . Distress Signals . | . . . . . . . Times Spotted 250 | . 29 17 65 19 71 49 Peak Tracking Total 13 | . 6 6 6 13 7 10 Tactical Retreats 12 | . 1 2 3 2 3 1 Traps | -11 -10 -10 -9 -9 -8 -7 ------- Run | Yrd Mat Min Mat Min Mat Fac Traps Triggered 9 | . 2 1 1 . 3 2 Indirectly . | . . . . . . . Trap Hack Attempts . | . . . . . . . Triggered . | . . . . . . . Disarmed . | . . . . . . . Reprogrammed . | . . . . . . . Reused . | . . . . . . . Traps Extracted . | . . . . . . . Installed . | . . . . . . . Triggered . | . . . . . . . Most Traps Carried 2 | . . 2 2 . . . Machines | -11 -10 -10 -9 -9 -8 -7 ---------- Run | Yrd Mat Min Mat Min Mat Fac Machines Disabled 19 | . 4 . 2 . 6 7 Max in Single Turn 6 | . 3 . 1 . 3 6 Machines Repaired . | . . . . . . . Machines Dismantled . | . . . . . . . Machines Sabotaged . | . . . . . . . Overloaded Fab Kills . | . . . . . . . Hacking | -11 -10 -10 -9 -9 -8 -7 --------- Run | Yrd Mat Min Mat Min Mat Fac Machines Accessed 15 | . 1 1 10 . 2 1 Terminals 8 | . 1 . 6 . . 1 Fabricators . | . . . . . . . Repair Stations 2 | . . . 2 . . . Recycling Units . | . . . . . . . Scanalyzers 4 | . . . 2 . 2 . Garrison Access . | . . . . . . . Total Hacks 43 | . 3 1 28 . 7 4 Successful 26 | . 2 1 18 . 4 1 Failed 15 | . . . 9 . 3 3 Catastrophic 3 | . . . . . 1 2 Database Lockouts 2 | . 1 . 1 . . . Manual 12 | . 4 . 8 . . . Terminals 20 | . 3 . 13 . . 4 Fabricators . | . . . . . . . Repair Stations 10 | . . . 10 . . . Recycling Units . | . . . . . . . Scanalyzers 12 | . . . 5 . 7 . Garrison Access . | . . . . . . . Terminal Hacks 8 | . 1 1 5 . . 1 Part Schematic 2 | . 1 . 1 . . . Robot Analysis 1 | . . . 1 . . . Open Door 1 | . . 1 . . . . Alert Level 1 | . . . 1 . . . Unreport Threat 1 | . . . 1 . . . Locate Traps 1 | . . . 1 . . . Maintenance Status 1 | . . . . . . 1 Fabricator Hacks . | . . . . . . . Repair Station Hacks 8 | . . . 8 . . . Scan Component 4 | . . . 4 . . . Repair 4 | . . . 4 . . . Recycling Unit Hacks . | . . . . . . . Scanalyzer 9 | . . . 5 . 4 . Insert Component 4 | . . . 2 . 2 . Analyze 5 | . . . 3 . 2 . Garrison Access Hacks . | . . . . . . . Unauthorized Hacks 1 | . 1 . . . . . Terminals 1 | . 1 . . . . . Botnet 1 | . 1 . . . . . Fabricators . | . . . . . . . Repair Stations . | . . . . . . . Recycling Units . | . . . . . . . Scanalyzers . | . . . . . . . Garrison Access . | . . . . . . . Data Cores Recovered . | . . . . . . . Used . | . . . . . . . Hacking Detections 12 | . 1 . 8 . 2 1 Full Trace Events 5 | . . . 3 . 2 . Feedback Events . | . . . . . . . Feedback Blocked . | . . . . . . . Robot Schematics Acquired . | . . . . . . . Robots Built . | . . . . . . . Authchips . | . . . . . . . Time . | . . . . . . . Total Robot Build Rating . | . . . . . . . Part Schematics Acquired 6 | . 1 . 3 . 2 . Parts Built . | . . . . . . . Authchips . | . . . . . . . Time . | . . . . . . . Total Part Build Rating . | . . . . . . . Parts Repaired 4 | . . . 4 . . . Time 149 | . . . 149 . . . Parts Recycled . | . . . . . . . Recycled Matter . | . . . . . . . Retrieved Matter . | . . . . . . . Retrieved Components . | . . . . . . . Parts Scanalyzed 4 | . . . 2 . 2 . Part Schematics Acquired 4 | . . . 2 . 2 . Parts Damaged 2 | . . . 2 . . . Bothacking | -11 -10 -10 -9 -9 -8 -7 ------------ Run | Yrd Mat Min Mat Min Mat Fac Used RIF Installer . | . . . . . . . Robots Hacked . | . . . . . . . Non-combat . | . . . . . . . Combat . | . . . . . . . Robot Hacks Applied . | . . . . . . . Relay Couplers Released . | . . . . . . . Fabnet Peak Effective % . | . . . . . . . Robots Rewired . | . . . . . . . Allies Hacked . | . . . . . . . Hacks Repelled . | . . . . . . . Allies | -11 -10 -10 -9 -9 -8 -7 -------- Run | Yrd Mat Min Mat Min Mat Fac Total Allies 4 | . . 3 . 1 . . Largest Group 3 | . . 3 . 1 . . Highest-Rated Group 40 | . . 40 . 31 . . Highest-Rated Ally 31 | . . 16 . 31 . . Total Orders . | . . . . . . . Ally Attacks 26 | . . 15 . 11 . . Total Damage 406 | . . 196 . 210 . . Kills 4 | . . 4 . . . . Allies Corrupted . | . . . . . . . Allies Melted . | . . . . . . . Intel | -11 -10 -10 -9 -9 -8 -7 ------- Run | Yrd Mat Min Mat Min Mat Fac Robot Analysis Total 1 | . . . 1 . . . Derelict Logs Recovered 5 | . . 3 . 2 . . Drone Launches . | . . . . . . . Drone Recoveries . | . . . . . . . Exploration | -11 -10 -10 -9 -9 -8 -7 ------------- Run | Yrd Mat Min Mat Min Mat Fac Turns Passed 15258 | 193 2270 752 4710 624 3604 3105 Spaces Moved 5836 | 88 1003 383 1611 249 1194 1308 Core 17 | 4 . . . . . 13 Treads 4973 | 84 1003 383 1611 249 1175 468 Legs . | . . . . . . . Wheels 846 | . . . . . 19 827 Hover . | . . . . . . . Flight . | . . . . . . . Fastest Speed 50 | 50 160 160 225 225 190 100 Average Speed 204 | 155 162 167 233 225 239 179 Slowest Speed 2050 | 160 240 320 320 230 480 2050 Overloaded Moves . | . . . . . . . Propulsion Burnouts . | . . . . . . . Robots Hopped . | . . . . . . . Cave-ins Triggered 1 | . . . . . 1 . Exploration Rate (%) 60 | 4 98 60 97 46 82 33 Regions Visited 6 Branch Regions 2 Pre-discovered Areas 1 | . . . . 1 . . Known Exits Taken 3 | . . 1 1 . 1 . Unknown Exits Taken 3 | 1 1 . . 1 . . Scrap Searched 3 | . . 1 . 2 . . Spaces Dug 10 | . . . 3 . 7 . Terrain Destroyed 105 | . 3 . 10 33 34 25 Melee . | . . . . . . . Projectile 38 | . . . 10 . 28 . AOE 67 | . 3 . . 33 6 25 Terrain Rammed 1 | . . . . . . 1 Walls Destroyed 1 | . . . . . . 1 Machines Disabled . | . . . . . . . Actions | -11 -10 -10 -9 -9 -8 -7 --------- Run | Yrd Mat Min Mat Min Mat Fac Total 8020 | 115 1523 441 2247 280 1585 1829 Wait 962 | . 407 8 279 1 44 223 Move 5830 | 87 1002 382 1610 248 1193 1308 Hop . | . . . . . . . Pick Up 150 | 5 19 5 59 2 34 26 Fast Attach 71 | 7 5 2 16 . 15 26 Attach 39 | . 1 1 6 2 9 20 Detach 8 | . 1 2 2 . 1 2 Swap 98 | 1 8 2 25 2 37 23 Drop 180 | . 15 7 67 3 55 33 Fire 617 | 14 62 25 172 18 188 138 Melee . | . . . . . . . Ram 8 | . . . . . . 8 Kick . | . . . . . . . Crush 53 | 1 3 7 7 4 9 22 Escape Stasis . | . . . . . . . Rewire 4 | . . . 4 . . . Trap . | . . . . . . . Miscellaneous . | . . . . . . . Route ------- -11/Scrapyard -10/Materials (discovered 5 exits: *Mat x3 / *Min x2) -10/Mines (discovered 2 exits: *Mat x2) -9/Materials (discovered 6 exits: *Mat x2 / *Min x2 / [*Sto x2]) -9/Mines -8/Materials (discovered 3 exits: *Fac x3) -7/Factory (discovered 1 exit: [*Fac]) History --------- Turn | Location | Event 8 | -11/Scrapyard | Discovered new exit (range 15) 194 | -11/Scrapyard | Entered Materials 302 | -10/Materials | Build established: Mutant 590 | -10/Materials | Central database locked down 711 | -10/Materials | Discovered new exit (range 5) 1091 | -10/Materials | Discovered new exit (range 3) 1246 | -10/Materials | Discovered new exit (range 6) 1440 | -10/Materials | Core integrity fell below 50% 1657 | -10/Materials | Discovered new exit (range 13) 1933 | -10/Materials | Discovered new exit (range 11) 2464 | -10/Materials | Entered Mines 2469 | -10/Mines | Learned Materials stockpile data 2479 | -10/Mines | Assisted by bots powering up and referring to "LRC-V3" 2543 | -10/Mines | Identified exit to Materials 2552 | -10/Mines | Found a hidden stash of uninstalled traps 2606 | -10/Mines | Met a Derelict who couldn't figure out how to use a Trap Extractor 2808 | -10/Mines | Deemed a non-threat by the Exiles lab entrance 2873 | -10/Mines | Learned location of 1 exit from Materials 2952 | -10/Mines | Discovered exit to Materials (range 10) 2974 | -10/Mines | Core integrity fell below 20% 3129 | -10/Mines | Excavation squad dispatched 3129 | -10/Mines | A large section of the Mines collapsed 3216 | -10/Mines | Entered Materials 3216 | -9/Materials | Evolved 2 slots: Propulsion x1, Utility x1 3217 | -9/Materials | Identified exit to Mines 3490 | -9/Materials | Lost 4 parts (2n1u1w) 3810 | -9/Materials | Central database locked down 3893 | -9/Materials | Build established: Scavenger-Mutant 4042 | -9/Materials | Discovered new exit (range 12) 4304 | -9/Materials | Discovered new exit (range 6) 4700 | -9/Materials | Build established: Mutant 4777 | -9/Materials | Repaired Med. Armor Plating 5241 | -9/Materials | Discovered new exit (range 13) 5955 | -9/Materials | Discovered exit to Mines (range 10) 6827 | -9/Materials | Discovered new exit (range 16) 7216 | -9/Materials | First assault squad dispatched 7258 | -9/Materials | Core integrity fell below 50% 7531 | -9/Materials | Repaired Broken Adv. Treads 7565 | -9/Materials | Repaired Med. Armor Plating 7600 | -9/Materials | Repaired Imp. Light Cannon 7926 | -9/Materials | Entered Mines 7926 | -9/Mines | Discovered new exit (range 14) 7940 | -9/Mines | Learned location of Zion (-6) 7942 | -9/Mines | Learned Materials stockpile data 7989 | -9/Mines | Received a Mining Laser from a helpful Derelict 8434 | -9/Mines | Assembled infested the area 8477 | -9/Mines | Destroyed 12 combat bots 8550 | -9/Mines | Entered Materials 8550 | -8/Materials | Evolved 2 slots: Propulsion x1, Utility x1 9265 | -8/Materials | Build established: Scavenger-Mutant 9603 | -8/Materials | Discovered new exit (range 9) 9781 | -8/Materials | Identified exit to Factory 10032 | -8/Materials | Crushed by falling debris 10397 | -8/Materials | Build established: Mutant 10475 | -8/Materials | Discovered exit to Factory (range 11) 11750 | -8/Materials | First assault squad dispatched 11899 | -8/Materials | Core integrity fell below 50% 12119 | -8/Materials | Discovered exit to Factory (range 9) 12154 | -8/Materials | Entered Factory 12154 | -7/Factory | Evolved 2 slots: Propulsion x1, Utility x1 12337 | -7/Factory | Garrison activated, responded to threat 12733 | -7/Factory | Build established: Scavenger-Mutant 12816 | -7/Factory | Cargo convoy interrupted 12971 | -7/Factory | Lost 14 parts (1p5n5u3w) 13051 | -7/Factory | Core integrity fell below 50% 13093 | -7/Factory | Lost 3 parts (2u1w) 13155 | -7/Factory | Build established: Mutant 13427 | -7/Factory | System corruption reached 10% 13588 | -7/Factory | Build established: Scavenger-Mutant 14083 | -7/Factory | Build established: Mutant 14456 | -7/Factory | Core integrity fell below 20% 14759 | -7/Factory | Build established: Scavenger-Mutant 15250 | -7/Factory | Discovered new exit (range 8) 15259 | -7/Factory | Destroyed by X-67 Chaingunner with Heavy Machine Gun Last Messages --------------- 15131_ PI NMN8XJT0GFD#G0T I9IA# 15154_ ALERT: Rogue bot located, Programmers report to Factory Zone 5N. 15156_ :T|R7A1LZ LRIJSIVFFI2MUN=A POH 15205_ System corrupted: FCS attempts to trigger Flak Gun. 15212_ ALERT: Suspicious intruders detected, dispatching Specialist reinforcements to area. 15232_ JSQL=WYDTVA6LXPLMA29MDALJ #Z A2LZMWL58M 15241_ Slammed into X-67 Chaingunner. 15245_ Construction Platform disabled. 15245_ Slammed into X-67 Chaingunner. 15250_ EXIT=FOUND 15251_ Imp. Medium Armor Plating destroyed. 15252_ Acquired 7 matter. 15253_ System corrupted: Energy discharge (-111). 15255_ Penetrated by Slug. 15257_ Imp. Propulsion Shielding destroyed. 15257_ Lgt. Treads destroyed. 15258_ X-67 Chaingunner destroyed. 15258_ Switching to secondary target: X-67 Chaingunner. 15259_ Flak Gun destroyed. Map ----- +----------------------------------------------------+ | ?????????????????????????????????????????????? | | ?????????????????????????????????????????????? | | ?????????????????????????????????????????????? | | ?????????????????????????????????????????????? | | ?????????????????????????????????????????????? | | ?????????????????????????????????????????????? | | ?????????????????????????????????????????????? | | ?????????????????????????????????????????????? | | ?????????????????????????????????????????????? | | ?????????????????????????????????????????????? | | ?????????????????????????????????????????????? | | ?????????????????????????????????????????????? | | ?????????????????????????????????????????????? | | ?????????????????????????????????????????????? | | ?????????????????????#######?????????????????? | | ?????????????????????# #?????????????????? | | ?????????????????????# #?????????????????? | | ?????????????????????# < #?????????????????? | | ?????????????????????# H ?????????????????? | | ?????????????????????# #?????????????????? | | ?????????????????????# #?????????????????? | | ?????????????????????# #?????????????????? | | ?????????????????????# ##############????? | | ?????????????#####+### !%=# #????? | | ?????????? % # """ """" #????? | | ?????????? r @ ; """ ""????????? | | ?????????? % x# """" "?????????? | | ?????????? # """" ""????????? | | ???????????w # """" """???????? | | ??????????? #####+######;## """" """"??????? | | ????????????????????????#### """" """" #????? | | ???????????????????????????# #????? | | ???????????????????????????# #????? | | ???????????????????????????# #????? | | ???????????????????????????# #????? | | ???????????????????????????#+############????? | | ???????????????????????????# #???????????????? | | ???????????????????????????# #???????????????? | | ???????????????????????????# #???????????????? | | ???????????????????????????# #???????????????? | | ???????????????????????????# #############???? | | ???????????????????????????# #???? | | ???????????????????????????# ######## #???? | | ???????????????????????????# #??????# #???? | | ????????????????????????? #??????# #???? | | ??????????????????????? #??????# #???? | | ????????????????????? #??????# #???? | | ???????????????????? #??????# #???? | | ???????????????????############ #??????# #???? | | ??????????????????????????????# #??????# #???? | +----------------------------------------------------+ Best States ------------- Heat Dissipation 53 Coolant Potential 65 Energy Generation 18 Energy Capacity 310 Matter Stores 300 Matter Capacity 300 Sight Range 16 Terrain Scan Range 16 Terrain Scan Density 10 Armor Coverage 975 Resistance: KI 20 Resistance: TH 10 Resistance: EM 15 Core Shielding 20 Propulsion Shielding 66 Weapon Shielding 33 Evasion (%) 40 Targeting Accuracy 8 Recoil Reduction 5 Trap Extractor Capacity 6 Item Schematics ----------------- Huge Storage Unit | -10/Materials | Hacked Arm. Wheel | -9/Materials | Hacked Adv. Treads | -9/Materials | Scanalyzed Mni. Grenade Launcher | -9/Materials | Scanalyzed Reflective Plating | -8/Materials | Scanalyzed Enh. Autogun | -8/Materials | Scanalyzed Robot Schematics ------------------ None Fabricated ------------ Nothing Alien Tech Used ----------------- None Achievements -------------- None Challenges ------------ None Game ------ Seed EnergyBombardmentLauncher Manual? 0 Play Time 01:37:37 Cumulative 72.0 hours Start 2024.04.11 @ 12:43:47 End 2024.04.11 @ 14:25:06 Sessions 1 Manual Loads 0 Difficulty Rogue Special Mode None Game No. 74 Rogue 74 Adventurer 0 Explorer 0 Win Type - Total 1 Types 1/0/0/0/0/0/0/0/0 Lore% 33 Gallery% 46 Achievement% 41 Wizard Run 0 Options --------- Layout 0 ASCII 0 Keyboard 1 Movement Numpad Keybinds 0 Fullscreen 2 Font 24/Smallcaps Map View 76x50 Zoom Use 0% Tactical HUD 1 Map Filters NONE Filters NONE Steam 1 RUN: fac62155-632a-44d1-9c47-7001f0bd4bc4